Workbook

Sheet LISTA DESPLEGABLE (hidden)
B2: RESULTADOS OBTENIDOS
B3: FAVORABLES
B4: ACCIÓN CORRECTIVA
B5: RIESGO

Sheet INSTRUCTIVO
D2: PASOS A SEGUIR:
D4: 1. | E4: Lea el instructivo.
D5: 2. | E5: Pase a la hoja " Matriz de Seguimiento de Objetivos del Sistema Integrado de Gestión".
D6: 3. | E6: Ubique el macroproceso que le correponda.
D7: 4. | E7: Valide los criterios "Qué se va a hacer?, Qué recursos se requerirán?, Quién será el responsable?, Cuándo se finalizará?, Cómo se evaluarán los resultados?, Indicador, peso, cumplimiento indicado, línea base y meta.
D11: 5. | E11: Valide el cumplimiento del macroproceso que corresponda, en la pestaña "Revisión por la Dirección". Recuerde que allí tendrá una vista total del cumplimiento de sus acciones y por ende del objetivo que impacta.

Sheet MET_OBJ_INTEGRALES_31032021_ART
H2: EMPRESA DE LICORES DE CUNDINAMARCA | P2: Código : MPE0203000000.F04-2
P3: Versión :2
H4: MATRIZ DE SEGUIMIENTO DE OBJETIVOS DEL SISTEMA INTEGRADO DE GESTIÓN - 31 DE MARZO DE 2021 | P4: Fecha de emisión: 30/01/2021 | T4: Página:2
C8: EJES ESTRATÉGICOS | D8: OBJETIVOS DEL SISTEMA INTEGRADO DE GESTIÓN | H8: REQUISITO 6.2.1. / 6.2.2.Normas Técnicas Colombianas ISO 9001:2015 / 14001: 2015 | M8: INDICADOR | N8: PESO INDICADO | O8: CUMPLIMIENTO | P8: PONDERACIÓN DE LOS INDICADORES | S8: LÍNEA BASE | T8: META | U8: RESULTADOS OBTENIDOS
H9: ¿Qué se va a hacer? | I9: ¿Qué recursos se requerirán? | J9: ¿Quién será el responsable? | K9: ¿Cuándo se finalizará? | L9: ¿Cómo se evaluarán los resultados?
C10: EJE ESTRATÉGICO 1. EFECTIVIDAD EN LA GESTIÓN. EJE ESTRATÉGICO 2. CULTURA ORGANIZACIONAL. | D10: Evaluar y mejorar de manera continua el Sistema Integrado de Gestión. | H10: Establecer mecanismos de mejora continua, de acuerdo con las NTC ISO 9001:2015 / 14001:2015. | I10: De acuerdo con el presupuesto establecido por la gestión del Sistema Integrado de Gestión dispondrá dos rubros presupuestales 2.1.1 - Gastos de Personal - 2.1.2.02.02.008 - Servicios prestados a las empresas y servicios de producción. | J10: TODOS LOS MACROPROCESOS. | K10: EN PERIODOS PROGRAMADOS Y CONTINUOS. | L10: Mediante metodologías de medición, control y seguimiento ( Métricas de Seguimiento Objetivos Integrales - Mapa de Riesgos - Plan Anual de Auditorias - Campañas - Capacitaciones - Acompañamientos - Actualización permanente de la documentación del S.I.G.). | M10: Eficiencia del Sistema =( Número total de días estimados / Número real de días) *100). | N10: 0.1166 | O10: 0 | P10: =(N10*O10)+(N11*O11)+(N12*O12)+(N13*O13)+(N14*O14)+(N15*O15)+(N16*O16) -> 0.4922467742 | S10: 0 | T10: 1 | U10: RIESGO
M11: Nivel de relevancia y representatividad en los objetivos de la entidad = ((Total de riesgos identificados - Total riesgos controlados) / Total riesgos identificados)*100). | N11: 0.1166 | O11: 0 | S11: 0 | T11: 1 | U11: RIESGO
M12: Mejora Continua = ((Acciones de mejora continua generadoras de valor / Acciones de mejora continua identificadas)*100). | N12: 0.1166 | O12: =(5/5) -> 1 | S12: 0 | T12: 1 | U12: FAVORABLES
M13: Campañas del Sistema de Gestión = ((Campañas gestionadas / Campañas Programadas)*100). | N13: 0.1166 | O13: =(3/12) -> 0.25 | S13: 0 | T13: 1 | U13: FAVORABLES
M14: Gestión del Conocimiento = ((Evaluaciones de la eficacia superadas / Colaboradores capacitados)*100). | N14: 0.1166 | O14: =(30/33) -> 0.9090909091 | S14: 0 | T14: 1 | U14: FAVORABLES
M15: Actualización permanente de la documentación del S.I.G. = ((Controles de cambios gestionados / Controles de cambios solicitados)*100). | N15: 0.1166 | O15: =SUM([1]INFORME!$E$19,[1]INFORME!$J$19,[1]INFORME!$O$19)/SUM([1]INFORME!$B$23,[1]INFORME!$G$23,[1]INFORME!$L$23) -> 1.419354839 | S15: 0 | T15: 1 | U15: FAVORABLES
H16: Involucrar a la Alta Dirección de la Empresa de Licores de Cundinamarca, con el fin de obtener los entregables esperados para el Sistema de Gestión. | I16: De acuerdo con el presupuesto establecido por la gestión del Sistema Integrado de Gestión dispondrá dos rubros presupuestales 2.1.1 - Gastos de Personal - 2.1.2.02.02.008 - Servicios prestados a las empresas y servicios de producción. | J16: TODOS LOS MACROPROCESOS. | K16: EN PERIODOS PROGRAMADOS Y CONTINUOS. | L16: Mediante revisiones por la alta dirección y resultados de la misma, así como decisiones tomadas con el fin de dar alcance a la mejora continua. | M16: (Salidas producto de revisiones por la dirección / Entradas presentadas para toma de decisiones). | N16: 0.3 | O16: =(1/4) -> 0.25 | S16: 0 | T16: 1 | U16: FAVORABLES
C17: EJE ESTRATÉGICO 1. EFECTIVIDAD EN LA GESTIÓN. | D17: Incrementar la confianza del consumidor en la calidad de nuestros productos. | H17: Hacer las inspecciones de todos los materiales (materias primas, insumos, producto en proceso, producto terminado), sujetos a verificación por parte de calidad, con el fin de controlar el cumplimiento de los requisitos aplicables. | I17: De acuerdo con el presupuesto establecido por la gestión Control de Calidad dispondrá dos rubros presupuestales 2.1.1 - Gastos de Personal - 2.1.2.02.02.008 - Servicios prestados a las empresas y servicios de producción. | J17: MACROPROCESO DE CONTROL DE CALIDAD. | K17: DICIEMBRE 31 DE 2021. | L17: Mediante metodologías de medición, control y seguimiento (Indicadores de Gestión - Mapa de Riesgos). | M17: (Número de lotes de materiales inspeccionados en el período / Número de materiales ingresados en el período). | N17: 1 | O17: 1 | P17: =(N17*O17) -> 1 | S17: Historico. | T17: 1 | U17: FAVORABLES
C18: EJE ESTRATÉGICO 1. EFECTIVIDAD EN LA GESTIÓN. EJE ESTRATÉGICO 2. CULTURA ORGANIZACIONAL. | D18: Incrementar las ventas, cobertura y mantener el posicionamiento de las marcas. | H18: Crecer en el territorio colombiano, incrementando las ventas de manera progresiva. | I18: De acuerdo con el presupuesto establecido por las gestiones Comercial y Comunicaciones Institucionales dispondrán dos rubros presupuestales 2.1.1 - Gastos de Personal - 2.1.2.02.02.008 - Servicios prestados a las empresas y servicios de producción. | J18: MACROPROCESO GESTIÓN COMERCIAL. | K18: DICIEMBRE 31 DE 2021. | L18: Mediante metodologías de medición, control y seguimiento (Indicadores de Gestión - Mapa de Riesgos). | M18: (Unidades vendidas unidades convertidas a 750 ml / unidades proyectadas a comercializar convertidas a 750 ml). | N18: 0.15 | O18: =24200/100000 -> 0.242 | P18: =(N18*O18)+(N19*O19)+(N20*O20)+(N21*O21)+(N22*O22)+(N23*O23)+(N24*O24)+(N25*O25) -> 0.145163676 | S18: 16000 | T18: 1 | U18: FAVORABLES
H19: Incrementar las exportaciones, mediante alianzas estrategicas a nivel mundial. | I19: De acuerdo con el presupuesto establecido por las gestiones Comercial y Comunicaciones Institucionales dispondrán dos rubros presupuestales 2.1.1 - Gastos de Personal - 2.1.2.02.02.008 - Servicios prestados a las empresas y servicios de producción. | J19: MACROPROCESO GESTIÓN COMERCIAL. | K19: DICIEMBRE 31 DE 2021. | L19: Mediante metodologías de medición, control y seguimiento (Indicadores de Gestión - Mapa de Riesgos). | M19: (Unidades vendidas unidades convertidas a 750 ml / unidades proyectadas a comercializar convertidas a 750 ml). | N19: 0.1 | O19: =0/20000 -> 0 | S19: 0 | T19: 1 | U19: RIESGO
H20: Crecer en el mercado de alcohol al 96%. | I20: De acuerdo con el presupuesto establecido por las gestiones Comercial y Comunicaciones Institucionales dispondrán dos rubros presupuestales 2.1.1 - Gastos de Personal - 2.1.2.02.02.008 - Servicios prestados a las empresas y servicios de producción. | J20: MACROPROCESO GESTIÓN COMERCIAL. | K20: DICIEMBRE 31 DE 2021. | L20: Mediante metodologías de medición, control y seguimiento (Indicadores de Gestión - Mapa de Riesgos). | M20: (# Litros vendidos / # Litros proyectados). | N20: 0.05 | O20: =41249/423483 -> 0.09740414609 | S20: 518648 | T20: 1 | U20: RIESGO
H21: Crecer en el mercado ONLINE, mediante herramientas interactivas que permitan dicho crecimiento. | I21: De acuerdo con el presupuesto establecido por las gestiones Comercial y Comunicaciones Institucionales dispondrán dos rubros presupuestales 2.1.1 - Gastos de Personal - 2.1.2.02.02.008 - Servicios prestados a las empresas y servicios de producción. | J21: MACROPROCESOS GESTIÓN COMERCIAL - INNOVACIÓN Y DESARROLLO - COMUNICACIONES INSTITUCIONALES - TIC. | K21: DICIEMBRE 31 DE 2021. | L21: Mediante metodologías de medición, control y seguimiento (Indicadores de Gestión - Mapa de Riesgos). | M21: (Unidades vendidas unidades convertidas a 750 ml / unidades proyectadas a comercializar convertidas a 750 ml). | N21: 0.05 | O21: =53346/299139 -> 0.1783318123 | S21: 125007 | T21: 0.8 | U21: RIESGO
H22: Generar el seguimiento y evaluación del comportamiento de las ventas de la Empresa de Licores de Cundinamarca - E.L.C.. (sell out). | I22: De acuerdo con el presupuesto establecido por las gestiones Comercial y Comunicaciones Institucionales dispondrán dos rubros presupuestales 2.1.1 - Gastos de Personal - 2.1.2.02.02.008 - Servicios prestados a las empresas y servicios de producción. | J22: MACROPROCESO GESTIÓN COMERCIAL. | K22: DICIEMBRE 31 DE 2021. | L22: Mediante metodologías de medición, control y seguimiento (Indicadores de Gestión - Mapa de Riesgos). | M22: (Unidades comercializadas "sell out" en unidades convertidas a 750 ml / unidades omercializadas "sell out" en unidades convertidas a 750 mlt periodo anterior). | N22: 0.35 | O22: =+(1591437+100982+12991+8436+641+85277+376)/9400000 -> 0.1915042553 | S22: 9400000 | T22: 1 | U22: RIESGO
H23: Generar valor y empatía con nuestras marcas al consumidor final. | I23: De acuerdo con el presupuesto establecido por las gestiones Comercial y Comunicaciones Institucionales dispondrán dos rubros presupuestales 2.1.1 - Gastos de Personal - 2.1.2.02.02.008 - Servicios prestados a las empresas y servicios de producción. | J23: MACROPROCESOS GESTIÓN COMERCIAL - COMUNICACIONES INSTITUCIONALES. | K23: DICIEMBRE 31 DE 2021. | L23: Mediante metodologías de medición, control y seguimiento (Indicadores de Gestión - Mapa de Riesgos). | M23: (Unidades vendidas unidades convertidas a 750 ml / unidades proyectadas a comercializar convertidas a 750 ml). | N23: 0.1 | O23: =+((1591437+100982+12991+8436+641+85277+376)*10%)/997286 -> 0.1805038876 | S23: 940000 | T23: 1 | U23: RIESGO
H24: Investigar tendencias y resultados del mercado. | I24: De acuerdo con el presupuesto establecido por las gestiones Comercial y Comunicaciones Institucionales dispondrán dos rubros presupuestales 2.1.1 - Gastos de Personal - 2.1.2.02.02.008 - Servicios prestados a las empresas y servicios de producción. | J24: MACROPROCESO GESTIÓN COMERCIAL. | K24: DICIEMBRE 31 DE 2021. | L24: Mediante metodologías de medición, control y seguimiento (Indicadores de Gestión - Mapa de Riesgos). | M24: Cantidad de Investigaciones de mercado realizadas/ Cantidad de investigaciones proyectadas | N24: 0.05 | O24: =1/5 -> 0.2 | S24: 2 | T24: 1 | U24: FAVORABLES
H25: Diversificar el portafolio, a través de alternativas rentables y atractivas tanto para la Empresa de Licores de Cundinamarca como para los clientes. | I25: De acuerdo con el presupuesto establecido por las gestiones Comercial y Comunicaciones Institucionales dispondrán dos rubros presupuestales 2.1.1 - Gastos de Personal - 2.1.2.02.02.008 - Servicios prestados a las empresas y servicios de producción. | J25: MACROPROCESOS GESTIÓN COMERCIAL - INNOVACIÓN Y DESARROLLO. | K25: DICIEMBRE 31 DE 2021. | L25: Mediante metodologías de medición, control y seguimiento (Indicadores de Gestión - Mapa de Riesgos). | M25: (Productos lanzados / Lanzamiento de productos proyectados). | N25: 0.15 | O25: =(0/1) -> 0 | S25: 1 | T25: 1 | U25: RIESGO
C26: EJE ESTRATÉGICO 1. EFECTIVIDAD EN LA GESTIÓN. EJE ESTRATÉGICO 2. CULTURA ORGANIZACIONAL. | D26: Optimizar los recursos económicos de la Empresa de Licores de Cundinamarca, en beneficio de los Cundinamarqueses y demás partes interesadas. | H26: Mantener cobertura del Pasivo Pensional. | I26: De acuerdo con el presupuesto establecido por la entidad se dispondra un rubro presupuestal - A23104 - Impuestos a las transacciones financieras - Se genera ahorro en lo que respecta al GMF, disminuyendo la carga impositiva. El objetivo estratégico se fundamentará en dos grandes componentes: a) Una estructura de costos y gastos eficiente y austera, b) el , las cuales se reflejarán en los ingresos monetarios. | J26: MACROPROCESOS DE GESTIÓN FINANCIERA - TALENTO HUMANO. | K26: EN PERIODOS PROGRAMADOS Y CONTINUOS. | L26: Mediante metodologías de medición, control y seguimiento (Indicadores de Gestión - Mapa de Riesgos). | M26: (Activos que respaldan el Pasivo Pensional / Pasivo Pensional). | N26: 0.2 | O26: =(162138433459/203577744611) -> 0.7964447871 | P26: =(N26*O26)+(N27*O27)+(N28*O28)+(N29*O29)+(N30*O30)+(N31*O31)+(N32*O32) -> 0.6134575563 | S26: 0 | T26: 1 | U26: FAVORABLES
H27: Reducir la estructura de costos y/o gastos a través de Políticas de ahorro y austeridad. | I27: De acuerdo con el presupuesto establecido por la entidad se dispondra un rubro presupuestal - A23104 - Impuestos a las transacciones financieras - Se genera ahorro en lo que respecta al GMF, disminuyendo la carga impositiva. El objetivo estratégico se fundamentará en dos grandes componentes: a) Una estructura de costos y gastos eficiente y austera, b) el , las cuales se reflejarán en los ingresos monetarios. | J27: TODOS LOS MACROPROCESOS. | K27: DICIEMBRE 31 DE 2021. | L27: Mediante metodologías de medición, control y seguimiento (Indicadores de Gestión - Mapa de Riesgos). | M27: ((Costos y/o gastos del año actual / Costos y/o gastos del año anterior) - 1). | N27: 0.1 | O27: =((9193892668/12411459742)-1) -> -0.2592416316 | S27: -0.32 | T27: >=-32% | U27: FAVORABLES
H28: Generar rentabilidad mediante inversiones de excedentes de liquidez. | I28: De acuerdo con el presupuesto establecido por la entidad se dispondra un rubro presupuestal - A23104 - Impuestos a las transacciones financieras - Se genera ahorro en lo que respecta al GMF, disminuyendo la carga impositiva. El objetivo estratégico se fundamentará en dos grandes componentes: a) Una estructura de costos y gastos eficiente y austera, b) el , las cuales se reflejarán en los ingresos monetarios. | J28: MACROPROCESO DE GESTIÓN FINANCIERA. | K28: DICIEMBRE 31 DE 2021. | L28: Mediante metodologías de medición, control y seguimiento (Indicadores de Gestión - Mapa de Riesgos). | M28: (Activo corriente / Pasivo corriente). | N28: 0.1 | O28: =((82007409/14135100)/5.86) -> 0.9900487719 | S28: 8.59 | T28: >=5,86 | U28: FAVORABLES
H29: Mantener convenio con una Fiduciaria que le permita a la empresa obtener un ahorro por impuesto a movimientos financieros del 4 x mil. | I29: De acuerdo con el presupuesto establecido por la entidad se dispondra un rubro presupuestal - A23104 - Impuestos a las transacciones financieras - Se genera ahorro en lo que respecta al GMF, disminuyendo la carga impositiva. El objetivo estratégico se fundamentará en dos grandes componentes: a) Una estructura de costos y gastos eficiente y austera, b) el , las cuales se reflejarán en los ingresos monetarios. | J29: MACROPROCESO GESTIÓN FINANCIERA. | K29: DICIEMBRE 31 DE 2021. | L29: Mediante metodologías de medición, control y seguimiento (Indicadores de Gestión - Mapa de Riesgos). | M29: (Transferencias realizadas via Fiduciaria * 4x1000 / Total de gastos). | N29: 0.1 | O29: =((200000000*4/1000)/37374159) -> 0.02140516393 | S29: 0.22 | T29: >=22% | U29: RIESGO
H30: Renegociar los contratos con los proveedores con el fin de obtener descuentos. | I30: De acuerdo con el presupuesto establecido por la entidad se dispondra un rubro presupuestal - A23104 - Impuestos a las transacciones financieras - Se genera ahorro en lo que respecta al GMF, disminuyendo la carga impositiva. El objetivo estratégico se fundamentará en dos grandes componentes: a) Una estructura de costos y gastos eficiente y austera, b) el , las cuales se reflejarán en los ingresos monetarios. | J30: TODOS LOS MACROPROCESOS. | K30: DICIEMBRE 31 DE 2021. | L30: Mediante metodologías de medición, control y seguimiento (Indicadores de Gestión - Mapa de Riesgos). | M30: (Variables contractuales cuantitativas año actual / Variables contractuales cuantitativas año anterior). (Variables contractuales cualitativas año actual / Variables contractuales cualitativas año anterior). | N30: 0.1 | O30: 0 | S30: 0 | T30: >=0,5% | U30: RIESGO
H31: Depuración permanente de la información contable. | I31: De acuerdo con el presupuesto establecido por la entidad se dispondra un rubro presupuestal - A23104 - Impuestos a las transacciones financieras - Se genera ahorro en lo que respecta al GMF, disminuyendo la carga impositiva. El objetivo estratégico se fundamentará en dos grandes componentes: a) Una estructura de costos y gastos eficiente y austera, b) el , las cuales se reflejarán en los ingresos monetarios. | J31: MACROPROCESO DE GESTIÓN FINANCIERA. | K31: EN PERIODOS PROGRAMADOS Y CONTINUOS. | L31: Mediante metodologías de medición, control y seguimiento (Indicadores de Gestión - Mapa de Riesgos). | M31: (Número de cuentas depuradas / Número de cuentas por depurar). | N31: 0.4 | O31: =144/152 -> 0.9473684211 | S31: 0.95 | T31: 1 | U31: FAVORABLES
H32: Reducir los gastos de pólizas de seguros. | I32: De acuerdo con el presupuesto establecido por la entidad se dispondra un rubro presupuestal - A23104 - Impuestos a las transacciones financieras - Se genera ahorro en lo que respecta al GMF, disminuyendo la carga impositiva. El objetivo estratégico se fundamentará en dos grandes componentes: a) Una estructura de costos y gastos eficiente y austera, b) el , las cuales se reflejarán en los ingresos monetarios. | J32: MACROPROCESOS DE GESTIÓN FINANCIERA - ADMINISTRATIVA. | K32: DICIEMBRE 31 DE 2021. | L32: Mediante metodologías de medición, control y seguimiento (Indicadores de Gestión - Mapa de Riesgos). | M32: (Acciones ejecutadas / Acciones programadas). | N32: 0.1 | O32: 0 | S32: 1 | T32: >=0,5% | U32: RIESGO
C33: EJE ESTRATÉGICO 1. EFECTIVIDAD EN LA GESTIÓN. EJE ESTRATÉGICO 2. CULTURA ORGANIZACIONAL. EJE ESTRATÉGICO 3. GESTIÓN DEL CONOCIMIENTO. | D33: Identificar, capturar y compartir el conocimiento y fortalecer las competencias del capital humano de la Empresa de Licores de Cundinamarca. | H33: Proceso de diagnóstico de necesidades de capacitación. | I33: De acuerdo con el presupuesto establecido por la gestión de Talento Humano dispondrá dos rubros presupuestales 2.1.1 - Gastos de Personal - 2.1.2.02.02.008 - Servicios prestados a las empresas y servicios de producción. | J33: MACROPROCESOS DE GESTIÓN DEL TALENTO HUMANO - GESTIÓN DE CONTROL INTERNO. | K33: NOVIEMBRE DE 2020. | L33: Mediante metodologías de medición, control y seguimiento (Indicadores de Gestión - Mapa de Riesgos). | M33: (Necesidades de capacitación gestionadas / Necesidades de capacitación identificadas). | N33: 0.1 | O33: =(5/19) -> 0.2631578947 | P33: =(N33*O33)+(N34*O34)+(N35*O35)+(N36*O36)+(N37*O37)+(N38*O38)+(N39*O39)+(N40*O40) -> 0.6299711554 | S33: 0 | T33: 70 - 90% | U33: FAVORABLES
H34: Formulación del programa anual de capacitación institucional. | I34: De acuerdo con el presupuesto establecido por la gestión de Talento Humano dispondrá dos rubros presupuestales 2.1.1 - Gastos de Personal - 2.1.2.02.02.008 - Servicios prestados a las empresas y servicios de producción. | J34: MACROPROCESOS DE GESTIÓN DEL TALENTO HUMANO - GESTIÓN DE CONTROL INTERNO. | K34: DICIEMBRE DE 2020 - FEBRERO 02 DE 2021. | L34: Mediante metodologías de medición, control y seguimiento (Indicadores de Gestión - Mapa de Riesgos). | M34: (Servidores Públicos Asistentes / Servidores Públicos Programados). | N34: 0.15 | O34: =(27/37) -> 0.7297297297 | S34: 0 | T34: 70 - 90% | U34: FAVORABLES
H35: Inducción y reinducción a servidores públicos de la Empresa de Licores de Cundinamarca. | I35: De acuerdo con el presupuesto establecido por la gestión de Talento Humano dispondrá dos rubros presupuestales 2.1.1 - Gastos de Personal - 2.1.2.02.02.008 - Servicios prestados a las empresas y servicios de producción. | J35: MACROPROCESOS DE GESTIÓN DEL TALENTO HUMANO - GESTIÓN DE CONTROL INTERNO. | K35: EN PERIODOS PROGRAMADOS Y CONTINUO. | L35: Mediante metodologías de medición, control y seguimiento (Indicadores de Gestión - Mapa de Riesgos). | M35: (Inducciónes gestionadas / Inducciones solicitadas) (Reinducciones ejecutados de acuerdo con los términos estalbecidos / Reinducciones programadas de acuerdo con los términos estalbecidos). | N35: 0.1 | O35: =20/20 -> 1 | S35: 0 | T35: 70 - 90% | U35: FAVORABLES
H36: Evaluación posterior a la capacitación para establecer el grado de conocimiento y comprensión de los temas tratados en las capacitaciones. | I36: De acuerdo con el presupuesto establecido por la gestión de Talento Humano dispondrá dos rubros presupuestales 2.1.1 - Gastos de Personal - 2.1.2.02.02.008 - Servicios prestados a las empresas y servicios de producción. | J36: MACROPROCESOS DE GESTIÓN DEL TALENTO HUMANO - GESTIÓN DE CONTROL INTERNO. | K36: EN PERIODOS PROGRAMADOS Y CONTINUO. | L36: Mediante metodologías de medición, control y seguimiento (Indicadores de Gestión - Mapa de Riesgos). | M36: (Evaluaciones superadas / Evaluaciones practicadas). | N36: 0.15 | O36: =5/19 -> 0.2631578947 | S36: 0 | T36: 70 - 90% | U36: FAVORABLES
H37: Elaboración de entregables que apunten a la transmisión del conocimiento e innovación. | I37: De acuerdo con el presupuesto establecido por la gestión de Talento Humano dispondrá dos rubros presupuestales 2.1.1 - Gastos de Personal - 2.1.2.02.02.008 - Servicios prestados a las empresas y servicios de producción. | J37: MACROPROCESOS DE GESTIONES DE TALENTO HUMANO - INNOVACIÓN - SISTEMA INTEGRADO DE GESTIÓN - DIRECCIONAMIENTO ESTRATÉGICO. | K37: EN PERIODOS PROGRAMADOS Y CONTINUO. | L37: Mediante metodologías de medición, control y seguimiento (Indicadores de Gestión - Mapa de Riesgos). | M37: (Politica de Gestion del Conocimiento Desarrollada / # de Politicas Propuestas). | N37: 0.15 | O37: =1/1 -> 1 | S37: 0 | T37: 70 - 90% | U37: FAVORABLES
H38: Mejorar el Índice de Transparencia y Acceso a la información pública. | I38: De acuerdo con el presupuesto establecido por la gestión de Talento Humano dispondrá dos rubros presupuestales 2.1.1 - Gastos de Personal - 2.1.2.02.02.008 - Servicios prestados a las empresas y servicios de producción. | J38: TODOS LOS MACROPROCESOS. | K38: EN PERIODOS PROGRAMADOS Y CONTINUO. | L38: Mediante metodologías de medición, control y seguimiento (Indicadores de Gestión - Mapa de Riesgos). | M38: (Número de Criterios en cumplimiento/Número de Criterios Establecidos en la Ley 1712 del 06 de marzo de 2014). | N38: 0.15 | O38: =(55/100) -> 0.55 | S38: 0 | T38: 70 - 90% | U38: FAVORABLES
H39: Proceso de diagnóstico de bienestar social e incentivos. | I39: De acuerdo con el presupuesto establecido por la gestión de Talento Humano dispondrá dos rubros presupuestales 2.1.1 - Gastos de Personal - 2.1.2.02.02.008 - Servicios prestados a las empresas y servicios de producción. | J39: MACROPROCESOS DE GESTIÓN DEL TALENTO HUMANO - GESTIÓN DE CONTROL INTERNO. | K39: NOVIEMBRE DE 2020. | L39: Mediante metodologías de medición, control y seguimiento (Indicadores de Gestión - Mapa de Riesgos). | M39: (Necesidades de bienestar social e incentivos gestionadas / Necesidades de bienestar social e incentivos identificadas). | N39: 0.1 | O39: =2/9 -> 0.2222222222 | S39: 0 | T39: 70 - 90% | U39: FAVORABLES
H40: Formulación del programa anual de bienestar social e incentivos. | I40: De acuerdo con el presupuesto establecido por la gestión de Talento Humano dispondrá dos rubros presupuestales 2.1.1 - Gastos de Personal - 2.1.2.02.02.008 - Servicios prestados a las empresas y servicios de producción. | J40: MACROPROCESOS DE GESTIÓN DEL TALENTO HUMANO - GESTIÓN DE CONTROL INTERNO. | K40: DICIEMBRE DE 2020 - FEBRERO 02 DE 2021. | L40: Mediante metodologías de medición, control y seguimiento (Indicadores de Gestión - Mapa de Riesgos). | M40: (Servidores Públicos Asistentes / Servidores Públicos Programados). | N40: 0.1 | O40: =1/1 -> 1 | S40: 0 | T40: 70 - 90% | U40: FAVORABLES
C41: EJE ESTRATÉGICO 1. EFECTIVIDAD EN LA GESTIÓN. EJE ESTRATÉGICO 2. CULTURA ORGANIZACIONAL. EJE ESTRATÉGICO 4. GESTIÓN DE INNOVACIÓN TECNOLÓGICA Y DE SERVICIOS. | D41: Fortalecer el uso de los canales de comunicación en procura de satisfacer las necesidades y expectativas de las partes interesadas. | H41: Fortalecer las relaciones institucionales. | I41: De acuerdo con el presupuesto establecido por las gestiones Comercial y Comunicaciones Institucionales dispondrán dos rubros presupuestales 2.1.1 - Gastos de Personal - 2.1.2.02.02.008 - Servicios prestados a las empresas y servicios de producción. | J41: MACROPROCESOS GESTIÓN COMERCIAL - COMUNICACIONES INSTITUCIONALES. | K41: DICIEMBRE 31 DE 2021. | L41: Mediante metodologías de medición, control y seguimiento (Indicadores de Gestión - Mapa de Riesgos). | M41: (Disposición de datos oportunamente / Disposición de datos requeridos). | N41: 0.25 | O41: =270/270 -> 1 | P41: =(N41*O41)+(N42*O42)+(N43*O43)+(N44*O44) -> 0.7969230769 | S41: 820 | T41: 1 | U41: FAVORABLES
H42: Garantizar la buena imagen y el posicionamiento de la compañía frente a los diferentes "Ciudadanos, usuarios y grupos de interés". | I42: De acuerdo con el presupuesto establecido por las gestiones Comercial y Comunicaciones Institucionales dispondrán dos rubros presupuestales 2.1.1 - Gastos de Personal - 2.1.2.02.02.008 - Servicios prestados a las empresas y servicios de producción. | J42: MACROPROCESOS GESTIÓN COMERCIAL - COMUNICACIONES INSTITUCIONALES. | K42: DICIEMBRE 31 DE 2021. | L42: Mediante metodologías de medición, control y seguimiento (Indicadores de Gestión - Mapa de Riesgos). | M42: (Grado de satistacción generado /grado de satisfacción proyectado). | N42: 0.25 | O42: =(4.6/5) -> 0.92 | S42: 83 | T42: 1 | U42: FAVORABLES
H43: Mejorar la comunicación con el público interno y externo. | I43: De acuerdo con el presupuesto establecido por las gestiones Comercial y Comunicaciones Institucionales dispondrán dos rubros presupuestales 2.1.1 - Gastos de Personal - 2.1.2.02.02.008 - Servicios prestados a las empresas y servicios de producción. | J43: MACROPROCESOS GESTIÓN COMERCIAL - COMUNICACIONES INSTITUCIONALES - TIC. | K43: DICIEMBRE 31 DE 2021. | L43: Mediante metodologías de medición, control y seguimiento (Indicadores de Gestión - Mapa de Riesgos). | M43: (Actividades generadas / Actividdades proyectadas). | N43: 0.25 | O43: =13/50 -> 0.26 | S43: 48 | T43: 1 | U43: FAVORABLES
H44: Mejorar la comunicación de las marcas NECTAR y RON SANTAFE a travéz de las redes sociales. | I44: De acuerdo con el presupuesto establecido por las gestiones Comercial y Comunicaciones Institucionales dispondrán dos rubros presupuestales 2.1.1 - Gastos de Personal - 2.1.2.02.02.008 - Servicios prestados a las empresas y servicios de producción. | J44: MACROPROCESO GESTIÓN COMERCIAL. | K44: DICIEMBRE 31 DE 2021. | L44: Mediante metodologías de medición, control y seguimiento (Indicadores de Gestión - Mapa de Riesgos). | M44: (Número de seguidores actuales/Número de seguidores proyectados). | N44: 0.25 | O44: =39300/39000 -> 1.007692308 | S44: 37000 | T44: 1 | U44: FAVORABLES
C45: EJE ESTRATÉGICO 1. EFECTIVIDAD EN LA GESTIÓN. EJE ESTRATÉGICO 2. CULTURA ORGANIZACIONAL. EJE ESTRATÉGICO 4. GESTIÓN DE INNOVACIÓN TECNOLÓGICA Y DE SERVICIOS. | D45: Optimizar el uso de la capacidad productiva y operativa de la E.L.C. | H45: Aumentar la confiabilidad de maquinaria y equipos de acuerdo al plan de mantenimiento preventivo. | I45: De acuerdo con el presupuesto establecido por la gestion del área de mantenimiento perteneciente a la subgerencia técnica, se dispondrán dos rubros presupuestales: 2.1.5.01.04.000.00.00.00 - productos metálicos maquinaria - 2.1.5.02.08.000.00.00.00- Servicios prestados a las empresas y servicios de producción. | J45: MACROPROCESO GESTIÓN DE MANTENIMIENTO. | K45: DICIEMBRE 31 DE 2021. | L45: Mediante metodologías de medición, control y seguimiento (Indicadores de Gestión - Mapa de Riesgos). | M45: Índice de cumplimiento= (OT cumplidas)/(OT planificadas)* 100 | N45: 0.1 | O45: =(286/1029) -> 0.2779397473 | P45: =(N45*O45)+(N46*O46)+(N47*O47)+(N48*O48)+(N49*O49) -> 0.6064662965 | S45: 0 | T45: 0.95 | U45: FAVORABLES
H46: Planificación de la Producción en Aguardientes, Rones, Alcohol Antiséptico y otros productos de la E.L.C. | I46: De acuerdo con el presupuesto establecido por las Gestión Efectiva de la Producción dispondrán dos rubros presupuestales 2.1.1 - Gastos de Personal - 2.1.2.02.02.008 - Servicios prestados a las empresas y servicios de producción. | J46: MACROPROCESO GESTIÓN TÉCNICA - GESTIÓN EFECTIVA DE LA PRODUCCIÓN | K46: DICIEMBRE 31 DE 2021. | L46: Mediante metodologías de medición, control y seguimiento (Indicadores de Gestión de la Producción). | M46: Planificar de manera efectiva la producción y hacer un control exhaustivo frente al cumplimiento de lo planificado, generando alertas tempranas. | N46: 0.225 | O46: =AVERAGE('[2]MATRIZ DE SEGUIMIENTO OBJETIVOS'!$O$39,'[2]MATRIZ DE SEGUIMIENTO OBJETIVOS'!$O$40,'[2]MATRIZ DE SEGUIMIENTO OBJETIVOS'!$O$41) -> 0.7200550383 | S46: Historico | T46: 1 | U46: RIESGO
L47: Mediante metodologías de medición, control y seguimiento (Indicadores de Gestión de la Producciòn). | M47: Planificar de manera optima los recursos de MOD, maquinaria, insumos y materias primas necesarios para cumplir eficiente y eficazmente el plan de ventas. | N47: 0.225 | O47: =AVERAGE('[2]MATRIZ DE SEGUIMIENTO OBJETIVOS'!$O$42,'[2]MATRIZ DE SEGUIMIENTO OBJETIVOS'!$O$43,'[2]MATRIZ DE SEGUIMIENTO OBJETIVOS'!$O$44) -> 0.6654242652 | S47: Historico | T47: 1 | U47: RIESGO
H48: Ejecutar de la Producción en Aguardientes, Rones, Alcohol Antiséptico y otros productos de la E.L.C. | M48: Ejecutar y controlar efectivamente el programa de producción de rones, aguardientes y demás productos de la ELC, de acuerdo con el requerimiento del mercado. | N48: 0.225 | O48: =AVERAGE('[2]MATRIZ DE SEGUIMIENTO OBJETIVOS'!$O$45,'[2]MATRIZ DE SEGUIMIENTO OBJETIVOS'!$O$46,'[2]MATRIZ DE SEGUIMIENTO OBJETIVOS'!$O$47) -> 0.9320585181 | S48: Historico | T48: 0.9 | U48: FAVORABLES
M49: Ejecutar y controlar efectivamente el programa de producción de rones, aguardientes y demás productos de la ELC, de acuerdo con el requerimiento del mercado. | N49: 0.225 | O49: =AVERAGE('[2]MATRIZ DE SEGUIMIENTO OBJETIVOS'!$O$48,'[2]MATRIZ DE SEGUIMIENTO OBJETIVOS'!$O$49,'[2]MATRIZ DE SEGUIMIENTO OBJETIVOS'!$O$50) -> 0.2543391642 | U49: RIESGO
C50: EJE ESTRATÉGICO 1. EFECTIVIDAD EN LA GESTIÓN. EJE ESTRATÉGICO 2. CULTURA ORGANIZACIONAL. EJE ESTRATÉGICO 6. PROTECCIÓN LEGAL CON RESPONSABILIDAD Y COMPROMISO. | D50: Brindar asesoría Jurídica oportuna, con credibilidad, eficacia. | H50: Efectuar control de legalidad de actos administrativos de manera expedita. | I50: De acuerdo con el presupuesto establecido por la Gestión Jurídica dispondrá dos rubros presupuestales 2.1.1 - Gastos de Personal - 2.1.2.02.02.008 - Servicios prestados a las empresas y servicios de producción. | J50: MACROPROCESOS GESTIÓN JURIDÍCA. | K50: DICIEMBRE 31 DE 2021. | L50: Mediante metodologías de medición, control y seguimiento (Indicadores de Gestión - Mapa de Riesgos). | M50: ( Actos Admistrativos radicados para control / Controles de legalidad realizados). | N50: 0.2 | O50: =(51/51) -> 1 | P50: =(N50*O50)+(N51*O51)+(N52*O52)+(N53*O53)+(N54*O54) -> 1 | S50: 1 | T50: 1 | U50: FAVORABLES
H51: Efectuar una revisión periodica de la normatividad expedida a nivel nacional y departamental, con el fin de validar el debido cumplimiento de las mismas. | I51: De acuerdo con el presupuesto establecido por la Gestión Jurídica dispondrá dos rubros presupuestales 2.1.1 - Gastos de Personal - 2.1.2.02.02.008 - Servicios prestados a las empresas y servicios de producción. | J51: MACROPROCESOS GESTIÓN JURIDÍCA. | K51: DICIEMBRE 31 DE 2021. | L51: Mediante metodologías de medición, control y seguimiento (Indicadores de Gestión - Mapa de Riesgos). | M51: ( Revisiones efectuadas / Revisiones Programadas). | N51: 0.2 | O51: =(1/1) -> 1 | S51: 1 | T51: 1 | U51: FAVORABLES
H52: Garantizar el debido cumplimierntos de los términos establecidos por la normatividad vigente en materia de Servicio y Atención al Ciudadano - SAC. | I52: De acuerdo con el presupuesto establecido por la Gestión Jurídica dispondrá dos rubros presupuestales 2.1.1 - Gastos de Personal - 2.1.2.02.02.008 - Servicios prestados a las empresas y servicios de producción. | J52: MACROPROCESOS GESTIÓN JURIDÍCA. | K52: DICIEMBRE 31 DE 2021. | L52: Mediante metodologías de medición, control y seguimiento (Indicadores de Gestión - Mapa de Riesgos). | M52: ( Respuestas Oportunas emitidas / Respuestas requeridas). | N52: 0.2 | O52: =(12/12) -> 1 | S52: Historico | T52: 1 | U52: FAVORABLES
H53: Fortalecer la representación judicial de la Empresa, con una eficaz y oportuna prevención, mitigación y reducción del daño antijurídico. | I53: De acuerdo con el presupuesto establecido por la Gestión Jurídica dispondrá dos rubros presupuestales 2.1.1 - Gastos de Personal - 2.1.2.02.02.008 - Servicios prestados a las empresas y servicios de producción. | J53: MACROPROCESOS GESTIÓN JURIDÍCA. | K53: DICIEMBRE 31 DE 2021. | L53: Mediante metodologías de medición, control y seguimiento (Indicadores de Gestión - Mapa de Riesgos). | M53: (No. Demandas en curso / No. Procesos con representación). | N53: 0.2 | O53: =(79/79) -> 1 | S53: Historico | T53: 1 | U53: FAVORABLES
H54: Proteger el portafolio de signos distintivos propiedad de la Empresa, mediante el seguimiento, verificación, registro y/o renovación de los mismos. | I54: De acuerdo con el presupuesto establecido por la Gestión Jurídica dispondrá dos rubros presupuestales 2.1.1 - Gastos de Personal - 2.1.2.02.02.008 - Servicios prestados a las empresas y servicios de producción. | J54: MACROPROCESOS GESTIÓN JURIDÍCA. | K54: DICIEMBRE 31 DE 2021. | L54: Mediante metodologías de medición, control y seguimiento (Indicadores de Gestión - Mapa de Riesgos). | M54: (No. Registros realizados y/o actualizados / No. Registros Solicitados). | N54: 0.2 | O54: =(55/55) -> 1 | S54: Historico | T54: 1 | U54: FAVORABLES
C55: EJE ESTRATÉGICO 1. EFECTIVIDAD EN LA GESTIÓN. EJE ESTRATÉGICO 2. CULTURA ORGANIZACIONAL. EJE ESTRATÉGICO 6. PROTECCIÓN LEGAL CON RESPONSABILIDAD Y COMPROMISO. | D55: Realizar acciones para prevenir enfermedades laborales, accidentes e incidentes de trabajo, y para brindar un ambiente sano y seguro tanto a los servidores públicos como a nuestros usuarios. Gestión SST. | H55: Identificar los peligros en todos los procesos (administrativos - productivos), evaluar y valorar los riesgos y determinar los respectivos controles. Priorizar los peligros segun lo indicado por el Procedimiento MPA0302000000.P06-2 e implementar las medidas de intervencion generadas por medio de la la Matriz de identificacion de peligros, evaluacion y valoracion de riesgos y determinacion de controles (MPA0302000000.F12-2) tendientes a eliminar o en su defecto controlar los riesgos. | I55: De acuerdo con el presupuesto establecido para la gestión del área de SST, los siguientes rubros: 2.1.2.02.01.002 Productos alimenticios, bebidas y tabaco; textiles, prendas de vestir y productos de cuero 2.1.2.02.01.003 Otros bienes transportables (excepto productos metálicos,maquinaria y equipo) 2.1.2.02.01.004 Productos metálicos y paquetes de software 2.1.2.02.02.008 Servicios prestados a las empresas y servicios de producción 2.1.3.07.02.031 Programa de salud ocupacional (no de pensiones). | J55: MACROPROCESOS DE GESTIÓN DEL TALENTO HUMANO - SEGURIDAD Y SALUD EN EL TRABAJO | K55: DICIEMBRE 31 DE 2021. | L55: Mediante los indicadores de estructura, proceso y resultado establecidos por la empresa y reglamentados por el Decreto 1072 de 2015. | M55: Matriz de identificacion de peligros, evaluacion y valoracion de riesgos y determinacion de controles actualizada. | N55: 0.1 | O55: =(1/1) -> 1 | P55: =(N55*O55)+(N56*O56)+(N57*O57) -> 0.5179104478 | S55: 0 | T55: ≥80% | U55: FAVORABLES
H56: Cumplir con el plan de capacitacion en Seguridad y Salud en el Trabajo establecido para el año 2021. | I56: De acuerdo con el presupuesto establecido para la gestión del área de SST, los siguientes rubros: 2.1.2.02.01.002 Productos alimenticios, bebidas y tabaco; textiles, prendas de vestir y productos de cuero 2.1.2.02.01.003 Otros bienes transportables (excepto productos metálicos,maquinaria y equipo) 2.1.2.02.01.004 Productos metálicos y paquetes de software 2.1.2.02.02.008 Servicios prestados a las empresas y servicios de producción 2.1.3.07.02.031 Programa de salud ocupacional (no de pensiones). | J56: MACROPROCESOS DE GESTIÓN DEL TALENTO HUMANO - SEGURIDAD Y SALUD EN EL TRABAJO | K56: DICIEMBRE 31 DE 2021. | L56: Mediante los indicadores de estructura, proceso y resultado establecidos por la empresa y reglamentados por el Decreto 1072 de 2015. | M56: (Capacitaciones ejecutadas / Capacitciones programadas). | N56: 0.3 | O56: =(25/25) -> 1 | S56: 0 | T56: ≥80% | U56: FAVORABLES
H57: Cumplir con el Plan de Trabajo resultante de la evaluacion de estandares minimos y auditoria del Sistema de Gestion de Seguridad y Salud en el Trabajo. | I57: De acuerdo con el presupuesto establecido para la gestión del área de SST, los siguientes rubros: 2.1.2.02.01.002 Productos alimenticios, bebidas y tabaco; textiles, prendas de vestir y productos de cuero 2.1.2.02.01.003 Otros bienes transportables (excepto productos metálicos,maquinaria y equipo) 2.1.2.02.01.004 Productos metálicos y paquetes de software 2.1.2.02.02.008 Servicios prestados a las empresas y servicios de producción 2.1.3.07.02.031 Programa de salud ocupacional (no de pensiones). | J57: MACROPROCESOS DE GESTIÓN DEL TALENTO HUMANO - SEGURIDAD Y SALUD EN EL TRABAJO | K57: DICIEMBRE 31 DE 2021. | L57: Mediante los indicadores de estructura, proceso y resultado establecidos por la empresa y reglamentados por el Decreto 1072 de 2015. | M57: (Actividades ejecutadas / Actividades programadas). | N57: 0.6 | O57: =(79/402) -> 0.1965174129 | S57: 0.8 | T57: ≥80% | U57: RIESGO
C58: EJE ESTRATÉGICO 1. EFECTIVIDAD EN LA GESTIÓN. EJE ESTRATÉGICO 2. CULTURA ORGANIZACIONAL. EJE ESTRATÉGICO 6. PROTECCIÓN LEGAL CON RESPONSABILIDAD Y COMPROMISO. | D58: Fomentar espacios de uso de metodologías de innovación como un factor estratégico clave para la efectividad de la gestión. | H58: Elaborar y ejecutar Plan de Gestión del Conocimiento. | I58: De acuerdo con el presupuesto establecido por la gestión de Innovación y desarrollo dispondrá dos rubros presupuestales 2.1.1 - Gastos de Personal - 2.1.2.02.02.008 - Servicios prestados a las empresas y servicios de producción. | J58: MACROPROCESOS DE GESTIÓN INNOVACIÓN Y DESARROLLO. | K58: DICIEMBRE 31 DE 2021. | L58: Mediante metodologías de medición, control y seguimiento (Indicadores de Gestión - Mapa de Riesgos). | M58: Índice de desempeño = ( Grado de avance Plan de Gestión del Conocimiento / Plan de Gestión del Conocimiento proyectado). | N58: 0.25 | O58: =0/1 -> 0 | P58: =(N58*O58)+(N59*O59)+(N60*O60)+(N61*O61)+(N62*O62) -> 0.05263157895 | S58: 0 | T58: 1 | U58: FAVORABLES
H59: Elaborar y ejecutar Plan de Innovación Organizacional. | I59: De acuerdo con el presupuesto establecido por la gestión de Innovación y desarrollo dispondrá dos rubros presupuestales 2.1.1 - Gastos de Personal - 2.1.2.02.02.008 - Servicios prestados a las empresas y servicios de producción. | J59: MACROPROCESOS DE GESTIÓN INNOVACIÓN Y DESARROLLO. | K59: DICIEMBRE 31 DE 2021. | L59: Mediante metodologías de medición, control y seguimiento (Indicadores de Gestión - Mapa de Riesgos). | M59: Índice de desempeño = ( Grado de avance Plan de Innovacion Organizacional / Plan de Innovacion Organizacional proyectado). | N59: 0.25 | O59: 0 | S59: 0 | T59: 1 | U59: RIESGO
H60: Elaborar y ejecutar Plan de Innovación y Desarrollo de nuevos productos. | I60: De acuerdo con el presupuesto establecido por la gestión de Innovación y desarrollo dispondrá dos rubros presupuestales 2.1.1 - Gastos de Personal - 2.1.2.02.02.008 - Servicios prestados a las empresas y servicios de producción. | J60: MACROPROCESOS DE GESTIÓN INNOVACIÓN Y DESARROLLO. | K60: DICIEMBRE 31 DE 2021. | L60: Mediante metodologías de medición, control y seguimiento (Indicadores de Gestión - Mapa de Riesgos). | M60: Índice de desempeño = ( Grado de avance Plan de Innovacion y desarrollo de nuevos productos / Plan de Innovacion y desarrollo de nuevos productos proyectado). | N60: 0.1 | O60: 0 | S60: 0 | T60: 1 | U60: RIESGO
H61: Gestionar la etapa de pre factibilidad. | I61: De acuerdo con el presupuesto establecido por la gestión de Innovación y desarrollo dispondrá dos rubros presupuestales 2.1.1 - Gastos de Personal - 2.1.2.02.02.008 - Servicios prestados a las empresas y servicios de producción. | J61: MACROPROCESOS DE GESTIÓN INNOVACIÓN Y DESARROLLO - GESTIÓN DE PROYECTOS. | K61: DICIEMBRE 31 DE 2021. | L61: Mediante metodologías de medición, control y seguimiento (Indicadores de Gestión - Mapa de Riesgos). | M61: *Cirterios técnicos en aplicación / Cirterios técnicos requeridos para aprobación. *Tasa Interna de Retorno mayor a la Tasa de Oportunidad / Tasa Interna de oportunidad. | N61: 0.2 | O61: =(5/19) -> 0.2631578947 | S61: 0 | T61: 1 | U61: FAVORABLES
H62: Monitorear y controlar el trabajo del proyecto en ejecución. | I62: De acuerdo con el presupuesto establecido por la gestión de Innovación y desarrollo dispondrá dos rubros presupuestales 2.1.1 - Gastos de Personal - 2.1.2.02.02.008 - Servicios prestados a las empresas y servicios de producción. | J62: MACROPROCESOS DE GESTIÓN INNOVACIÓN Y DESARROLLO - GESTIÓN DE PROYECTOS. | K62: DICIEMBRE 31 DE 2021. | L62: Mediante metodologías de medición, control y seguimiento (Indicadores de Gestión - Mapa de Riesgos). | M62: *Variación del costo - CV = ( Valor Ganado "EV" - Costo Real "AC"). *Índice de desempeño del costo - CPI = (Valor Ganado "EV" / Costo Real "AC". *Variación del cronograma - SV = ( Valor Ganado "EV" - Valor Planificado "PV"). *Índice de desempeño del cronograma - SPI = ( Valor Ganado "EV" / Valor Planificado "PV"). *Costo real del proyecto - EAC = (( Costo Real "AC" + ( Presupuesto Total "BAC" - Valor Ganado "EV") / (CPI * SPI)). *Índice del desempeño del trabajo por completar - TCPI = (( Presupuesto Total "BAC" - Valor Ganado "EV") / ( Presupuesto Total "BAC" - Costo Real "AC")). *Variación de la conclusión - VAC = ( Presupuesto Total "BAC" - Costo real del proyecto "EAC"). | N62: 0.2 | O62: 0 | S62: 0 | T62: 1 | U62: RIESGO
C63: EJE ESTRATÉGICO 1. EFECTIVIDAD EN LA GESTIÓN. EJE ESTRATÉGICO 2. CULTURA ORGANIZACIONAL. EJE ESTRATÉGICO 5. MANEJO AMBIENTAL SOSTENIBLE. | D63: Fomentar e implementar estrategias de operación y producción más limpia encaminadas a la disminución de la huella de carbono. | H63: Realizar la inclusión de clausulas ambientales dentro de la adquisión y suministro de materiales, insumos, materias primas y servicios. | I63: De acuerdo con el presupuesto establecido en la empresa, se dispondrán los siguientes rubros para el cumplimiento de las actividades: 2.1.2 adquisión de bienes y servicios. | J63: MACROPROCESO DE GESTIÓN AMBIENTAL. | K63: EN PERIODOS PROGRAMADOS Y CONTINUO. | L63: Mediante metodologías de medición, control y seguimiento (Indicadores de Gestión - Mapa de Riesgos- Caracterizaciones del macroproceso). | M63: ((Proveedores de servicios ambientales con calificación excelente o buena/total de proveedores de servicios ambientales)*100). | N63: 0.2 | O63: =4/4 -> 1 | P63: =(N63*O63)+(N65*O65) -> 0.2 | S63: 0 | T63: 1 | U63: FAVORABLES
H64: Aumentar la capacidad de autogeneración de energía limpia por medio de la ampliación de la planta solar fotovoltáica. | I64: De acuerdo con el presupuesto establecido por la entidad se dispondrá el valor correspondiente desde el rubro presupuestal 2.3.2.01.01 Activos Fijos | J64: MACROPROCESO DE GESTIÓN AMBIENTAL. | K64: EN PERIODOS PROGRAMADOS Y CONTINUO. | L64: Mediante metodologías de medición, control y seguimiento (Indicadores de Gestión - Mapa de Riesgos- Caracterizaciones del macroproceso). | M64: ((Energia consumida por paneles solares/ Total de energia consumida)*100). | N64: 0.25 | O64: =(51%+23%+13%)/3 -> 0.29 | S64: 0.24 | T64: 0.35 | U64: FAVORABLES
H65: Realizar la compensación de la huella de carbono previa implementación de la calculadora certificada para su medición. | I65: De acuerdo con el presupuesto establecido por la entidad se dispondrá el valor correspondiente desde el rubro presupuestal 2.3.2.02.02.009.00.00.00 Proyecto restauración ecológica. | J65: MACROPROCESO DE GESTIÓN AMBIENTAL. | K65: EN PERIODOS PROGRAMADOS Y CONTINUO. | L65: Mediante metodologías de medición, control y seguimiento (Indicadores de Gestión - Mapa de Riesgos- Caracterizaciones del macroproceso). | M65: ((Huella de carbono compensada/Total de huella de carbono)*100). | N65: 0.3 | O65: =0 -> 0 | S65: 0 | T65: 0.7 | U65: RIESGO
C66: EJE ESTRATÉGICO 1. EFECTIVIDAD EN LA GESTIÓN. EJE ESTRATÉGICO 2. CULTURA ORGANIZACIONAL. EJE ESTRATÉGICO 5. MANEJO AMBIENTAL SOSTENIBLE. | D66: Disminuir la frecuencia y permanencia de los impactos ambientales negativos generados por la empresa. | H66: Implementar programa de ahorro y uso eficiente del agua. | I66: De acuerdo con el presupuesto establecido en la empresa, se dispondrán los siguientes rubros para el cumplimiento de las actividades: 2.1.2 adquisión de bienes y servicios, 2.3.2.02.02.009 Servicios para la comunidad, sociales y personales, 2.3.2.02.01.003 Otros bienes transportables. | J66: MACROPROCESO DE GESTIÓN AMBIENTAL. | K66: EN PERIODOS PROGRAMADOS Y CONTINUO. | L66: Mediante metodologías de medición, control y seguimiento (Indicadores de Gestión - Mapa de Riesgos- Caracterizaciones del macroproceso). | M66: ((Consumo mes actual-consumo mes anterior)/consumo mes anterior)*100). | N66: 0.6 | O66: 0 | P66: =(N66*O66)+(N67*O67) -> 0 | S66: 0 | T66: -0.05 | U66: RIESGO
H67: Implementar actividades para el manejo adecuado de residuos peligrosos. | I67: De acuerdo con el presupuesto establecido en la empresa, se dispondrán los siguientes rubros para el cumplimiento de las actividades: 2.1.2 adquisión de bienes y servicios, 2.3.2.02.02.009 Servicios para la comunidad, sociales y personales, 2.3.2.02.01.003 Otros bienes transportables. | J67: MACROPROCESO DE GESTIÓN AMBIENTAL. | K67: EN PERIODOS PROGRAMADOS Y CONTINUO. | L67: Mediante metodologías de medición, control y seguimiento (Indicadores de Gestión - Mapa de Riesgos- Caracterizaciones del macroproceso). | M67: ((Residuos peligrosos generados en periodo actual-Residuos peligrosos generados en periodo anterior)/Residuos peligrosos generados en periodo anterior)*100). | N67: 0.4 | O67: 0 | S67: 0 | T67: -0.05 | U67: RIESGO
C68: EJE ESTRATÉGICO 1. EFECTIVIDAD EN LA GESTIÓN. EJE ESTRATÉGICO 2. CULTURA ORGANIZACIONAL. EJE ESTRATÉGICO 5. MANEJO AMBIENTAL SOSTENIBLE. | D68: Aumentar la recuperación de envases y empaques de los productos, para la disminución de los niveles de producción ilegal. | H68: Implementar programa de recuperación de envases y empaques. | I68: De acuerdo con el presupuesto establecido por la entidad se dispondrá el valor correspondiente desde el rubro presupuestal 2.3.2.02.02.009.00.00.00 Proyecto envases y empaques. | J68: MACROPROCESO DE GESTIÓN AMBIENTAL. | K68: EN PERIODOS PROGRAMADOS Y CONTINUO. | L68: Mediante metodologías de medición, control y seguimiento (Indicadores de Gestión - Mapa de Riesgos- Caracterizaciones del macroproceso). | M68: ((Envases y empaques recuperados/ Envases y empaques generados)*100). | N68: 1 | O68: 0 | P68: =(N68*O68) -> 0 | S68: 0 | T68: 1 | U68: RIESGO

Sheet REVISIÓN POR LA DIRECCIÓN TTRAL

Sheet REPORTE CONSOLIDADO (hidden)
B2: OBJETIVOS DEL SISTEMA INTEGRADO DE GESTIÓN (SIG) | C2: PESO TRIMESTRAL | D2: CUMPLIMIENTO PRIMER TRIMESTRE | F2: PESO ANUAL | G2: CUMPLIMIENTO FRENTE A LA META ANUAL | H2: DESVIACIÓN RELATIVA | I2: CUMPLIMIENTO SEGUNDO TRIMESTRE | K2: CUMPLIMIENTO FRENTE A LA META ANUAL | L2: DESVIACIÓN RELATIVA | M2: CUMPLIMIENTO TERCER TRIMESTRE | O2: CUMPLIMIENTO FRENTE A LA META ANUAL | P2: DESVIACIÓN RELATIVA | Q2: CUMPLIMIENTO CUARTO TRIMESTRE | S2: CUMPLIMIENTO FRENTE A LA META ANUAL | T2: DESVIACIÓN RELATIVA
B4: Evaluar y mejorar de manera continua el Sistema Integrado de Gestión. | C4: 0.25 | D4: 0.58 | F4: 1 | G4: =(C4*D4) -> 0.145 | H4: =+G4-C4 -> -0.105
B5: Incrementar la confianza del consumidor en la calidad de nuestros productos. | C5: 0.25 | D5: 1 | F5: 1 | G5: =(C5*D5) -> 0.25 | H5: 0
B6: Incrementar las ventas, cobertura y mantener el posicionamiento de las marcas. | C6: 0.245 | D6: 0.15 | F6: 0.98 | G6: 0.03675 | H6: -0.20825
B7: Optimizar los recursos económicos de la Empresa de Licores de Cundinamarca, en beneficio de los Cundinamarqueses y demás partes interesadas. | C7: 0.2225 | D7: 0.71 | F7: 0.89 | G7: 0.157975 | H7: -0.064525
B8: Identificar, capturar y compartir el conocimiento y fortalecer las competencias del capital humano de la Empresa de Licores de Cundinamarca. | C8: 0.225 | D8: 0.63 | F8: 0.9 | G8: 0.14175 | H8: -0.08325
B9: Fortalecer el uso de los canales de comunicación en procura de satisfacer las necesidades y expectativas de las partes interesadas. | C9: 0.25 | D9: 0.8 | F9: 1 | G9: 0.2 | H9: -0.05
B10: Optimizar el uso de la capacidad productiva y operativa de la E.L.C. | C10: 0.24 | D10: 0.6065 | F10: 0.96 | G10: 0.14556 | H10: -0.09444
B11: Brindar asesoría Jurídica oportuna, con credibilidad, eficacia. | C11: 0.25 | D11: 1 | F11: 1 | G11: 0.25 | H11: 0
B12: Realizar acciones para prevenir enfermedades laborales, accidentes e incidentes de trabajo, y para brindar un ambiente sano y seguro tanto a los servidores públicos como a nuestros usuarios. Gestión SST. | C12: 0.2 | D12: 0.52 | F12: 0.8 | G12: 0.104 | H12: -0.096
B13: Fomentar espacios de uso de metodologías de innovación como un factor estratégico clave para la efectividad de la gestión. | C13: 0.25 | D13: 0.05 | F13: 1 | G13: 0.0125 | H13: -0.2375
B14: Fomentar e implementar estrategias de operación y producción más limpia encaminadas a la disminución de la huella de carbono. | C14: 0.2266 | D14: 0.2 | F14: 0.92 | G14: 0.04532 | H14: -0.18128
B15: Disminuir la frecuencia y permanencia de los impactos ambientales negativos generados por la empresa. | C15: 0.25 | D15: 0 | F15: 1 | G15: 0 | H15: -0.25
B16: Aumentar la recuperación de envases y empaques de los productos, para la disminución de los niveles de producción ilegal. | C16: 0.25 | D16: 0 | F16: 1 | G16: 0 | H16: -0.25
